[Event "Titled Tuesday Blitz September 27 Early 2022"]
[White "Weetik, Vjacheslav"]
[Black "Evdokimov, Alexey"]
[WhiteFideId "4153472"]
[BlackFideId "24162450"]
[WhiteElo "2469"]
[BlackElo "2147"]
[Result "1-0"]
[Round "02"]
[TimeControl "180+1"]
[Date "2022.09.27"]
[WhiteClock "0:00:40"]
[BlackClock "0:00:01"]

1. d4 {[%clk 0:02:59]}  Nf6 {[%clk 0:02:59]} 2. Bf4 {[%clk 0:02:58]}  g6 {[%clk 0:02:59]} 3. Nf3 {[%clk 0:02:58]}  Bg7 {[%clk 0:02:59]} 4. e3 {[%clk 0:02:57]}  O-O {[%clk 0:03:00]} 5. c4 {[%clk 0:02:57]}  d6 {[%clk 0:03:00]} 6. Nc3 {[%clk 0:02:57]}  c5 {[%clk 0:03:00]} 7. dxc5 {[%clk 0:02:48]}  dxc5 {[%clk 0:03:00]} 8. Qc2 {[%clk 0:02:48]}  Nc6 {[%clk 0:02:59]} 9. a3 {[%clk 0:02:31]}  Bf5 {[%clk 0:02:58]} 10. Qb3 {[%clk 0:02:18]}  Na5 {[%clk 0:02:31]} 11. Qa4 {[%clk 0:02:11]}  Bd7 {[%clk 0:02:05]} 12. Qc2 {[%clk 0:02:10]}  Bf5 {[%clk 0:02:02]} 13. e4 {[%clk 0:02:09]}  Bg4 {[%clk 0:02:02]} 14. Ne5 {[%clk 0:02:07]}  Be6 {[%clk 0:01:46]} 15. Be2 {[%clk 0:01:55]}  Rc8 {[%clk 0:01:31]} 16. O-O {[%clk 0:01:54]}  Nc6 {[%clk 0:01:23]} 17. Nxc6 {[%clk 0:01:53]}  Rxc6 {[%clk 0:01:21]} 18. Be5 {[%clk 0:01:49]}  a6 {[%clk 0:01:00]} 19. f4 {[%clk 0:01:44]}  Ng4 {[%clk 0:00:28]} 20. Bxg7 {[%clk 0:01:37]}  Kxg7 {[%clk 0:00:19]} 21. Bxg4 {[%clk 0:01:26]}  Bxg4 {[%clk 0:00:19]} 22. Nd5 {[%clk 0:01:26]}  Be6 {[%clk 0:00:09]} 23. Rad1 {[%clk 0:01:22]}  Bxd5 {[%clk 0:00:08]} 24. cxd5 {[%clk 0:01:22]}  Rc8 {[%clk 0:00:07]} 25. e5 {[%clk 0:01:21]}  b5 {[%clk 0:00:05]} 26. f5 {[%clk 0:01:19]}  c4 {[%clk 0:00:05]} 27. d6 {[%clk 0:01:18]}  exd6 {[%clk 0:00:05]} 28. Rxd6 {[%clk 0:01:18]}  Qc7 {[%clk 0:00:05]} 29. Kh1 {[%clk 0:01:05]}  Qc5 {[%clk 0:00:05]} 30. Qc3 {[%clk 0:01:02]}  Kg8 {[%clk 0:00:04]} 31. Rd7 {[%clk 0:00:46]}  Rce8 {[%clk 0:00:03]} 32. e6 {[%clk 0:00:46]}  Qb6 {[%clk 0:00:01]} 33. Qf6 {[%clk 0:00:43]}  Rd8 {[%clk 0:00:01]} 34. exf7+ {[%clk 0:00:40]} 1-0


[Site "https://www.chess.com"]

[Event "Titled Tuesday Blitz September 27 Early 2022"]
[White "Xiong, Jeffery"]
[Black "Hristodoulou, Panagiotis"]
[WhiteFideId "2047640"]
[BlackFideId "4214340"]
[WhiteElo "2714"]
[BlackElo "2172"]
[Result "1-0"]
[Round "02"]
[TimeControl "180+1"]
[Date "2022.09.27"]
[WhiteClock "0:00:57"]
[BlackClock "0:00:03"]

1. e4 {[%clk 0:03:00]}  e5 {[%clk 0:02:59]} 2. Nf3 {[%clk 0:03:01]}  Nc6 {[%clk 0:02:59]} 3. Nc3 {[%clk 0:03:01]}  Nf6 {[%clk 0:02:58]} 4. d4 {[%clk 0:03:02]}  exd4 {[%clk 0:02:58]} 5. Nxd4 {[%clk 0:03:03]}  Bb4 {[%clk 0:02:58]} 6. Nxc6 {[%clk 0:03:03]}  bxc6 {[%clk 0:02:59]} 7. Bd3 {[%clk 0:03:04]}  O-O {[%clk 0:02:58]} 8. O-O {[%clk 0:03:05]}  d5 {[%clk 0:02:58]} 9. exd5 {[%clk 0:03:06]}  cxd5 {[%clk 0:02:59]} 10. h3 {[%clk 0:03:06]}  c6 {[%clk 0:02:57]} 11. Qf3 {[%clk 0:03:06]}  Bd6 {[%clk 0:02:53]} 12. Bf4 {[%clk 0:03:07]}  Rb8 {[%clk 0:02:52]} 13. b3 {[%clk 0:03:07]}  Be6 {[%clk 0:02:46]} 14. Ne2 {[%clk 0:03:07]}  Re8 {[%clk 0:02:45]} 15. Rfe1 {[%clk 0:03:06]}  c5 {[%clk 0:02:42]} 16. Rad1 {[%clk 0:03:06]}  a5 {[%clk 0:02:36]} 17. Bg5 {[%clk 0:03:05]}  h6 {[%clk 0:02:33]} 18. Bxf6 {[%clk 0:02:48]}  Qxf6 {[%clk 0:02:32]} 19. Qxf6 {[%clk 0:02:48]}  gxf6 {[%clk 0:02:32]} 20. Ng3 {[%clk 0:02:43]}  Bxg3 {[%clk 0:02:06]} 21. fxg3 {[%clk 0:02:44]}  a4 {[%clk 0:01:40]} 22. Rf1 {[%clk 0:02:40]}  axb3 {[%clk 0:01:37]} 23. axb3 {[%clk 0:02:41]}  c4 {[%clk 0:01:35]} 24. bxc4 {[%clk 0:02:13]}  dxc4 {[%clk 0:01:30]} 25. Bf5 {[%clk 0:02:13]}  Rb2 {[%clk 0:01:25]} 26. Rde1 {[%clk 0:02:04]}  Kg7 {[%clk 0:01:12]} 27. Rf4 {[%clk 0:02:04]}  h5 {[%clk 0:00:20]} 28. Rxc4 {[%clk 0:01:53]}  Rd8 {[%clk 0:00:12]} 29. Bxe6 {[%clk 0:01:52]}  fxe6 {[%clk 0:00:13]} 30. Rxe6 {[%clk 0:01:01]}  Rd2 {[%clk 0:00:09]} 31. g4 {[%clk 0:01:01]}  h4 {[%clk 0:00:06]} 32. g5 {[%clk 0:01:02]}  Rdxc2 {[%clk 0:00:04]} 33. gxf6+ {[%clk 0:00:58]}  Kf7 {[%clk 0:00:03]} 34. Rxc2 {[%clk 0:00:57]}  Rxc2 {[%clk 0:00:03]} 35. Re4 {[%clk 0:00:57]}  Kxf6 {[%clk 0:00:03]} 36. Rxh4 {[%clk 0:00:57]} 1-0


[Site "https://www.chess.com"]

[Event "Titled Tuesday Blitz September 27 Early 2022"]
[White "Xu, Yi"]
[Black "Marn, Jan"]
[WhiteFideId "8605564"]
[BlackFideId "14619245"]
[WhiteElo "2471"]
[BlackElo "2167"]
[Result "1-0"]
[Round "02"]
[TimeControl "180+1"]
[Date "2022.09.27"]
[WhiteClock "0:00:19"]
[BlackClock "0:00:02"]

1. b3 {[%clk 0:03:00]}  e5 {[%clk 0:02:51]} 2. Bb2 {[%clk 0:03:01]}  Nc6 {[%clk 0:02:51]} 3. c4 {[%clk 0:03:00]}  Nf6 {[%clk 0:02:39]} 4. g3 {[%clk 0:03:00]}  d5 {[%clk 0:02:36]} 5. Bg2 {[%clk 0:02:54]}  d4 {[%clk 0:02:16]} 6. a3 {[%clk 0:02:53]}  a5 {[%clk 0:02:15]} 7. d3 {[%clk 0:02:53]}  Bc5 {[%clk 0:02:11]} 8. Nd2 {[%clk 0:02:53]}  O-O {[%clk 0:02:11]} 9. Ngf3 {[%clk 0:02:53]}  h6 {[%clk 0:02:06]} 10. O-O {[%clk 0:02:53]}  Bf5 {[%clk 0:02:06]} 11. Nh4 {[%clk 0:02:49]}  Bh7 {[%clk 0:02:06]} 12. Qc2 {[%clk 0:02:22]}  Nd7 {[%clk 0:01:58]} 13. Rae1 {[%clk 0:02:05]}  f5 {[%clk 0:01:42]} 14. e4 {[%clk 0:02:00]}  dxe3 {[%clk 0:01:39]} 15. fxe3 {[%clk 0:02:00]}  f4 {[%clk 0:01:39]} 16. Bd5+ {[%clk 0:01:53]}  Kh8 {[%clk 0:01:39]} 17. Ne4 {[%clk 0:01:45]}  Bxe3+ {[%clk 0:01:38]} 18. Kh1 {[%clk 0:01:44]}  Nf6 {[%clk 0:01:01]} 19. Bxc6 {[%clk 0:01:22]}  bxc6 {[%clk 0:01:01]} 20. Bxe5 {[%clk 0:01:22]}  Nxe4 {[%clk 0:00:59]} 21. dxe4 {[%clk 0:01:22]}  fxg3 {[%clk 0:00:54]} 22. Nf5 {[%clk 0:01:08]}  Bxf5 {[%clk 0:00:34]} 23. exf5 {[%clk 0:01:07]}  Qg5 {[%clk 0:00:35]} 24. Bxg3 {[%clk 0:00:52]}  Rae8 {[%clk 0:00:35]} 25. Bxc7 {[%clk 0:00:49]}  Bc5 {[%clk 0:00:27]} 26. Rxe8 {[%clk 0:00:44]}  Rxe8 {[%clk 0:00:27]} 27. Bxa5 {[%clk 0:00:38]}  Re3 {[%clk 0:00:12]} 28. Bd2 {[%clk 0:00:31]}  Rf3 {[%clk 0:00:04]} 29. Bxg5 {[%clk 0:00:27]}  Rxf1+ {[%clk 0:00:05]} 30. Kg2 {[%clk 0:00:28]}  Rg1+ {[%clk 0:00:06]} 31. Kf3 {[%clk 0:00:28]}  Rxg5 {[%clk 0:00:06]} 32. b4 {[%clk 0:00:25]}  Bf8 {[%clk 0:00:06]} 33. c5 {[%clk 0:00:24]}  Rh5 {[%clk 0:00:06]} 34. b5 {[%clk 0:00:19]}  cxb5 {[%clk 0:00:05]} 35. c6 {[%clk 0:00:20]}  Rh3+ {[%clk 0:00:02]} 36. Kg2 {[%clk 0:00:19]}  Rxa3 {[%clk 0:00:02]} 37. c7 {[%clk 0:00:19]} 1-0


[Site "https://www.chess.com"]

[Event "Titled Tuesday Blitz September 27 Early 2022"]
[White "Yang, Ray"]
[Black "Matt, Fabian"]
[WhiteFideId "3220281"]
[BlackFideId "1623303"]
[WhiteElo "1796"]
[BlackElo "2287"]
[Result "0-1"]
[Round "02"]
[TimeControl "180+1"]
[Date "2022.09.27"]
[WhiteClock "0:00:19"]
[BlackClock "0:00:09"]

1. d4 {[%clk 0:03:00]}  d5 {[%clk 0:02:59]} 2. c4 {[%clk 0:03:00]}  c6 {[%clk 0:02:59]} 3. cxd5 {[%clk 0:03:00]}  cxd5 {[%clk 0:03:00]} 4. Bf4 {[%clk 0:03:00]}  Nc6 {[%clk 0:02:59]} 5. e3 {[%clk 0:02:56]}  Nf6 {[%clk 0:02:43]} 6. Nc3 {[%clk 0:02:55]}  Bf5 {[%clk 0:02:41]} 7. Qb3 {[%clk 0:02:52]}  Na5 {[%clk 0:02:40]} 8. Qa4+ {[%clk 0:02:51]}  Bd7 {[%clk 0:02:41]} 9. Qc2 {[%clk 0:02:49]}  e6 {[%clk 0:02:40]} 10. Bd3 {[%clk 0:02:45]}  Rc8 {[%clk 0:02:40]} 11. Nf3 {[%clk 0:02:43]}  Bb4 {[%clk 0:02:39]} 12. O-O {[%clk 0:02:43]}  O-O {[%clk 0:02:38]} 13. h3 {[%clk 0:02:39]}  h6 {[%clk 0:02:35]} 14. a3 {[%clk 0:02:27]}  Bxc3 {[%clk 0:02:32]} 15. bxc3 {[%clk 0:02:28]}  Nc4 {[%clk 0:02:30]} 16. Bxc4 {[%clk 0:02:20]}  Rxc4 {[%clk 0:02:29]} 17. Ne5 {[%clk 0:02:19]}  Rc8 {[%clk 0:02:28]} 18. Rfb1 {[%clk 0:02:16]}  b6 {[%clk 0:02:26]} 19. a4 {[%clk 0:02:06]}  Ne4 {[%clk 0:02:24]} 20. Rb3 {[%clk 0:02:01]}  Qe7 {[%clk 0:02:06]} 21. f3 {[%clk 0:01:48]}  Nd6 {[%clk 0:02:04]} 22. Nxd7 {[%clk 0:01:48]}  Qxd7 {[%clk 0:02:04]} 23. Bxd6 {[%clk 0:01:45]}  Qxd6 {[%clk 0:02:05]} 24. a5 {[%clk 0:01:44]}  Rc6 {[%clk 0:01:59]} 25. axb6 {[%clk 0:01:42]}  axb6 {[%clk 0:02:00]} 26. Rab1 {[%clk 0:01:39]}  Rfc8 {[%clk 0:02:00]} 27. Qb2 {[%clk 0:01:32]}  Qg3 {[%clk 0:01:53]} 28. Qf2 {[%clk 0:01:28]}  Qg5 {[%clk 0:01:50]} 29. h4 {[%clk 0:01:23]}  Qf5 {[%clk 0:01:48]} 30. Rxb6 {[%clk 0:01:15]}  Rxc3 {[%clk 0:01:46]} 31. Rb8 {[%clk 0:01:11]}  Rxb8 {[%clk 0:01:40]} 32. Rxb8+ {[%clk 0:01:10]}  Kh7 {[%clk 0:01:40]} 33. Rb2 {[%clk 0:01:08]}  Qd3 {[%clk 0:01:33]} 34. Re2 {[%clk 0:01:06]}  Rc1+ {[%clk 0:01:33]} 35. Kh2 {[%clk 0:01:04]}  g6 {[%clk 0:01:18]} 36. Rd2 {[%clk 0:00:56]}  Qf5 {[%clk 0:01:14]} 37. Qg3 {[%clk 0:00:47]}  Rc3 {[%clk 0:01:03]} 38. Qf2 {[%clk 0:00:38]}  g5 {[%clk 0:00:57]} 39. hxg5 {[%clk 0:00:37]}  hxg5 {[%clk 0:00:58]} 40. Re2 {[%clk 0:00:35]}  Kg7 {[%clk 0:00:50]} 41. Qg3 {[%clk 0:00:36]}  f6 {[%clk 0:00:39]} 42. Qh3 {[%clk 0:00:27]}  Qd3 {[%clk 0:00:31]} 43. Re1 {[%clk 0:00:25]}  Qd2 {[%clk 0:00:22]} 44. Qg3 {[%clk 0:00:23]}  Rxe3 {[%clk 0:00:19]} 45. Ra1 {[%clk 0:00:18]}  Re2 {[%clk 0:00:11]} 46. Ra7+ {[%clk 0:00:17]}  Kg6 {[%clk 0:00:11]} 47. Ra8 {[%clk 0:00:16]}  Qf4 {[%clk 0:00:09]} 48. Rg8+ {[%clk 0:00:15]}  Kf5 {[%clk 0:00:09]} 49. Qxf4+ {[%clk 0:00:15]}  gxf4 {[%clk 0:00:10]} 50. Kh3 {[%clk 0:00:14]}  Rd2 {[%clk 0:00:10]} 51. Rh8 {[%clk 0:00:15]}  Rxd4 {[%clk 0:00:09]} 52. Rh5+ {[%clk 0:00:16]}  Kg6 {[%clk 0:00:10]} 53. Kg4 {[%clk 0:00:16]}  e5 {[%clk 0:00:07]} 54. Rh8 {[%clk 0:00:16]}  Rd2 {[%clk 0:00:07]} 55. g3 {[%clk 0:00:16]}  fxg3 {[%clk 0:00:07]} 56. Kxg3 {[%clk 0:00:17]}  d4 {[%clk 0:00:08]} 57. Rd8 {[%clk 0:00:17]}  Kf5 {[%clk 0:00:08]} 58. Re8 {[%clk 0:00:17]}  Rd3 {[%clk 0:00:08]} 59. Rd8 {[%clk 0:00:17]}  e4 {[%clk 0:00:08]} 60. Kg2 {[%clk 0:00:17]}  Rxf3 {[%clk 0:00:09]} 61. Rd5+ {[%clk 0:00:16]}  Ke6 {[%clk 0:00:08]} 62. Rxd4 {[%clk 0:00:17]}  f5 {[%clk 0:00:08]} 63. Ra4 {[%clk 0:00:17]}  Ke5 {[%clk 0:00:08]} 64. Ra5+ {[%clk 0:00:16]}  Kf4 {[%clk 0:00:09]} 65. Ra4 {[%clk 0:00:17]}  Rg3+ {[%clk 0:00:09]} 66. Kf2 {[%clk 0:00:17]}  Rh3 {[%clk 0:00:09]} 67. Kg2 {[%clk 0:00:18]}  Rb3 {[%clk 0:00:09]} 68. Kf2 {[%clk 0:00:18]}  Rb2+ {[%clk 0:00:09]} 69. Ke1 {[%clk 0:00:18]}  Kf3 {[%clk 0:00:09]} 70. Ra3+ {[%clk 0:00:19]}  e3 {[%clk 0:00:09]} 0-1


[Site "https://www.chess.com"]

[Event "Titled Tuesday Blitz September 27 Early 2022"]
[White "Zaksaite, Salomeja"]
[Black "Cnejev, Vladimir-Alexandru"]
[WhiteFideId "12801496"]
[BlackFideId "1260898"]
[WhiteElo "1953"]
[BlackElo "1983"]
[Result "0-1"]
[Round "02"]
[TimeControl "180+1"]
[Date "2022.09.27"]
[WhiteClock "0:00:01"]
[BlackClock "0:00:13"]

1. e4 {[%clk 0:02:18]}  e5 {[%clk 0:02:58]} 2. Nf3 {[%clk 0:02:15]}  Nc6 {[%clk 0:02:58]} 3. Bc4 {[%clk 0:02:14]}  Bc5 {[%clk 0:02:57]} 4. d3 {[%clk 0:02:14]}  Nf6 {[%clk 0:02:56]} 5. Nbd2 {[%clk 0:02:13]}  a6 {[%clk 0:02:51]} 6. h3 {[%clk 0:02:03]}  d6 {[%clk 0:02:50]} 7. O-O {[%clk 0:02:03]}  h6 {[%clk 0:02:50]} 8. Re1 {[%clk 0:01:54]}  g5 {[%clk 0:02:49]} 9. Nf1 {[%clk 0:01:44]}  g4 {[%clk 0:02:38]} 10. hxg4 {[%clk 0:01:43]}  Nxg4 {[%clk 0:02:07]} 11. Ne3 {[%clk 0:01:33]}  Rg8 {[%clk 0:01:47]} 12. c3 {[%clk 0:01:19]}  Nxe3 {[%clk 0:01:30]} 13. Bxe3 {[%clk 0:01:18]}  Bh3 {[%clk 0:01:29]} 14. g3 {[%clk 0:01:03]}  Bxe3 {[%clk 0:00:51]} 15. Rxe3 {[%clk 0:01:00]}  Bg4 {[%clk 0:00:50]} 16. Qb3 {[%clk 0:00:41]}  Qf6 {[%clk 0:00:38]} 17. Qxb7 {[%clk 0:00:32]}  Kd7 {[%clk 0:00:38]} 18. Nh2 {[%clk 0:00:07]}  Rgb8 {[%clk 0:00:25]} 19. Nxg4 {[%clk 0:00:06]}  Qg7 {[%clk 0:00:21]} 20. Qxb8 {[%clk 0:00:03]}  Rxb8 {[%clk 0:00:22]} 21. Nh2 {[%clk 0:00:02]}  Rxb2 {[%clk 0:00:21]} 22. Nf3 {[%clk 0:00:01]}  a5 {[%clk 0:00:17]} 23. a4 {[%clk 0:00:01]}  h5 {[%clk 0:00:17]} 24. Bb5 {[%clk 0:00:01]}  Qf8 {[%clk 0:00:13]} 0-1


[Site "https://www.chess.com"]

[Event "Titled Tuesday Blitz September 27 Early 2022"]
[White "Zong, Davis"]
[Black "Srihari L R"]
[WhiteFideId "30903955"]
[BlackFideId "46617116"]
[WhiteElo "2061"]
[BlackElo "2208"]
[Result "1-0"]
[Round "02"]
[TimeControl "180+1"]
[Date "2022.09.27"]
[WhiteClock "0:00:10"]
[BlackClock "0:00:04"]

1. c4 {[%clk 0:03:00]}  g6 {[%clk 0:02:57]} 2. d4 {[%clk 0:03:00]}  Bg7 {[%clk 0:02:52]} 3. Nc3 {[%clk 0:03:00]}  d6 {[%clk 0:02:51]} 4. e4 {[%clk 0:03:00]}  Nc6 {[%clk 0:02:46]} 5. Nf3 {[%clk 0:02:57]}  Bg4 {[%clk 0:02:44]} 6. d5 {[%clk 0:02:53]}  Nd4 {[%clk 0:02:42]} 7. Be3 {[%clk 0:02:49]}  c5 {[%clk 0:02:36]} 8. dxc6 {[%clk 0:02:41]}  Nxc6 {[%clk 0:02:33]} 9. Be2 {[%clk 0:02:36]}  Nf6 {[%clk 0:02:24]} 10. O-O {[%clk 0:02:35]}  O-O {[%clk 0:02:22]} 11. Qd2 {[%clk 0:02:29]}  Qa5 {[%clk 0:02:15]} 12. a3 {[%clk 0:02:22]}  Rfc8 {[%clk 0:02:12]} 13. b4 {[%clk 0:02:19]}  Qd8 {[%clk 0:02:11]} 14. Rac1 {[%clk 0:02:17]}  Bxf3 {[%clk 0:02:10]} 15. gxf3 {[%clk 0:02:12]}  Ne5 {[%clk 0:02:03]} 16. Nd5 {[%clk 0:02:12]}  Qd7 {[%clk 0:01:56]} 17. Kg2 {[%clk 0:02:08]}  Nxd5 {[%clk 0:01:44]} 18. cxd5 {[%clk 0:02:09]}  Qa4 {[%clk 0:01:43]} 19. f4 {[%clk 0:02:00]}  Nd7 {[%clk 0:01:42]} 20. Qd3 {[%clk 0:01:51]}  Nb6 {[%clk 0:01:27]} 21. Bg4 {[%clk 0:01:46]}  Re8 {[%clk 0:01:07]} 22. Rc7 {[%clk 0:01:44]}  h5 {[%clk 0:00:48]} 23. Bd1 {[%clk 0:01:42]}  Qa6 {[%clk 0:00:44]} 24. b5 {[%clk 0:01:43]}  Qa5 {[%clk 0:00:33]} 25. Bd2 {[%clk 0:01:43]}  Nxd5 {[%clk 0:00:32]} 26. Rxb7 {[%clk 0:01:19]}  Bc3 {[%clk 0:00:26]} 27. Qxd5 {[%clk 0:01:04]}  Bxd2 {[%clk 0:00:26]} 28. Rxe7 {[%clk 0:01:04]}  Rxe7 {[%clk 0:00:25]} 29. Qxa8+ {[%clk 0:01:04]}  Kg7 {[%clk 0:00:25]} 30. f5 {[%clk 0:00:51]}  Qxb5 {[%clk 0:00:24]} 31. f6+ {[%clk 0:00:38]}  Kxf6 {[%clk 0:00:20]} 32. Qh8+ {[%clk 0:00:39]}  Ke6 {[%clk 0:00:18]} 33. Qc8+ {[%clk 0:00:37]}  Qd7 {[%clk 0:00:08]} 34. Bb3+ {[%clk 0:00:32]}  Ke5 {[%clk 0:00:08]} 35. f4+ {[%clk 0:00:23]}  Bxf4 {[%clk 0:00:08]} 36. Qc3+ {[%clk 0:00:21]}  Kxe4 {[%clk 0:00:06]} 37. Qf3+ {[%clk 0:00:17]}  Kd4 {[%clk 0:00:06]} 38. Qxf4+ {[%clk 0:00:16]}  Kc5 {[%clk 0:00:06]} 39. Rc1+ {[%clk 0:00:14]}  Kb6 {[%clk 0:00:05]} 40. Qb4+ {[%clk 0:00:10]}  Qb5 {[%clk 0:00:05]} 41. Qxd6+ {[%clk 0:00:10]}  Ka5 {[%clk 0:00:06]} 42. Rc5 {[%clk 0:00:08]}  Re2+ {[%clk 0:00:04]} 43. Kf3 {[%clk 0:00:09]}  Rb2 {[%clk 0:00:03]} 44. Rxb5+ {[%clk 0:00:08]}  Kxb5 {[%clk 0:00:04]} 45. Qb4+ {[%clk 0:00:09]}  Kc6 {[%clk 0:00:04]} 46. Ba4+ {[%clk 0:00:10]} 1-0


[Site "https://www.chess.com"]

[Event "Titled Tuesday Blitz September 27 Early 2022"]
[White "Adewumi, Tanitoluwa"]
[Black "Obregon Garcia, Roxangel"]
[WhiteFideId "30966396"]
[BlackFideId "3520420"]
[WhiteElo "2591"]
[BlackElo "2036"]
[Result "1-0"]
[Round "03"]
[TimeControl "180+1"]
[Date "2022.09.27"]
[WhiteClock "0:00:12"]
[BlackClock "0:00:32"]

1. Nf3 {[%clk 0:02:57]}  d5 {[%clk 0:02:55]} 2. b3 {[%clk 0:02:55]}  Nf6 {[%clk 0:02:54]} 3. Bb2 {[%clk 0:02:49]}  g6 {[%clk 0:02:54]} 4. c4 {[%clk 0:02:44]}  c6 {[%clk 0:02:53]} 5. d4 {[%clk 0:02:34]}  Bg7 {[%clk 0:02:53]} 6. e3 {[%clk 0:02:32]}  O-O {[%clk 0:02:53]} 7. Nc3 {[%clk 0:02:29]}  Re8 {[%clk 0:02:50]} 8. Ne5 {[%clk 0:02:26]}  Nbd7 {[%clk 0:02:49]} 9. Nd3 {[%clk 0:02:14]}  Ne4 {[%clk 0:02:48]} 10. cxd5 {[%clk 0:02:08]}  Nxc3 {[%clk 0:02:42]} 11. Bxc3 {[%clk 0:02:09]}  cxd5 {[%clk 0:02:43]} 12. Be2 {[%clk 0:02:09]}  b6 {[%clk 0:02:32]} 13. O-O {[%clk 0:02:08]}  Ba6 {[%clk 0:02:29]} 14. Nb4 {[%clk 0:02:05]}  Bxe2 {[%clk 0:02:28]} 15. Qxe2 {[%clk 0:02:06]}  e5 {[%clk 0:02:25]} 16. dxe5 {[%clk 0:02:02]}  Nxe5 {[%clk 0:02:19]} 17. Rad1 {[%clk 0:01:53]}  Rc8 {[%clk 0:01:58]} 18. Nxd5 {[%clk 0:01:47]}  Qh4 {[%clk 0:01:57]} 19. h3 {[%clk 0:01:39]}  Red8 {[%clk 0:01:41]} 20. f4 {[%clk 0:01:34]}  Nd7 {[%clk 0:01:23]} 21. Bxg7 {[%clk 0:01:04]}  Kxg7 {[%clk 0:01:24]} 22. Qb2+ {[%clk 0:01:03]}  Kg8 {[%clk 0:01:24]} 23. e4 {[%clk 0:00:47]}  Nc5 {[%clk 0:01:14]} 24. Nf6+ {[%clk 0:00:45]}  Kf8 {[%clk 0:01:12]} 25. Qe5 {[%clk 0:00:34]}  Nd3 {[%clk 0:01:05]} 26. Nd7+ {[%clk 0:00:23]}  Rxd7 {[%clk 0:01:01]} 27. Qh8+ {[%clk 0:00:23]}  Ke7 {[%clk 0:01:00]} 28. Qxc8 {[%clk 0:00:23]}  Rd8 {[%clk 0:00:47]} 29. Qc3 {[%clk 0:00:15]}  Nxf4 {[%clk 0:00:32]} 30. Qc7+ {[%clk 0:00:12]} 1-0


[Site "https://www.chess.com"]

[Event "Titled Tuesday Blitz September 27 Early 2022"]
[White "Agasarov, Benik"]
[Black "Yaniuk, Volodymyr"]
[WhiteFideId "13314823"]
[BlackFideId "14133083"]
[WhiteElo "2152"]
[BlackElo "2141"]
[Result "1-0"]
[Round "03"]
[TimeControl "180+1"]
[Date "2022.09.27"]
[WhiteClock "0:01:05"]
[BlackClock "0:00:01"]

1. c4 {[%clk 0:03:00]}  e5 {[%clk 0:02:59]} 2. Nc3 {[%clk 0:03:00]}  Nf6 {[%clk 0:02:59]} 3. Nf3 {[%clk 0:02:59]}  Nc6 {[%clk 0:02:59]} 4. e3 {[%clk 0:03:00]}  Bb4 {[%clk 0:02:55]} 5. Qc2 {[%clk 0:02:59]}  Bxc3 {[%clk 0:02:55]} 6. Qxc3 {[%clk 0:02:59]}  O-O {[%clk 0:02:55]} 7. Nxe5 {[%clk 0:02:17]}  Nxe5 {[%clk 0:02:50]} 8. Qxe5 {[%clk 0:02:17]}  Re8 {[%clk 0:02:51]} 9. Qg3 {[%clk 0:02:01]}  c5 {[%clk 0:02:50]} 10. Be2 {[%clk 0:01:57]}  d5 {[%clk 0:02:48]} 11. O-O {[%clk 0:01:53]}  Ne4 {[%clk 0:02:33]} 12. Qf4 {[%clk 0:01:53]}  Be6 {[%clk 0:01:55]} 13. d3 {[%clk 0:01:51]}  Nf6 {[%clk 0:01:45]} 14. b3 {[%clk 0:01:50]}  Qa5 {[%clk 0:01:14]} 15. Bb2 {[%clk 0:01:46]}  Nd7 {[%clk 0:01:10]} 16. cxd5 {[%clk 0:01:45]}  Qd2 {[%clk 0:00:42]} 17. dxe6 {[%clk 0:01:45]}  Rxe6 {[%clk 0:00:42]} 18. Bh5 {[%clk 0:01:35]}  g6 {[%clk 0:00:38]} 19. Bg4 {[%clk 0:01:32]}  Qxb2 {[%clk 0:00:21]} 20. Bxe6 {[%clk 0:01:32]}  fxe6 {[%clk 0:00:22]} 21. Qe4 {[%clk 0:01:31]}  Nf8 {[%clk 0:00:17]} 22. Qxb7 {[%clk 0:01:31]}  Rd8 {[%clk 0:00:17]} 23. Qxa7 {[%clk 0:01:30]}  Qf6 {[%clk 0:00:15]} 24. Qxc5 {[%clk 0:01:29]}  g5 {[%clk 0:00:14]} 25. d4 {[%clk 0:01:28]}  Ng6 {[%clk 0:00:14]} 26. Rad1 {[%clk 0:01:23]}  Rd5 {[%clk 0:00:11]} 27. Qc8+ {[%clk 0:01:23]}  Kg7 {[%clk 0:00:10]} 28. e4 {[%clk 0:01:20]}  Rd8 {[%clk 0:00:07]} 29. Qc7+ {[%clk 0:01:20]}  Kh6 {[%clk 0:00:07]} 30. d5 {[%clk 0:01:16]}  e5 {[%clk 0:00:06]} 31. d6 {[%clk 0:01:15]}  Nh4 {[%clk 0:00:05]} 32. Qe7 {[%clk 0:01:11]}  Qf4 {[%clk 0:00:02]} 33. Qxd8 {[%clk 0:01:06]}  Qg4 {[%clk 0:00:02]} 34. Qf8+ {[%clk 0:01:06]}  Kg6 {[%clk 0:00:02]} 35. Qf5+ {[%clk 0:01:05]}  Nxf5 {[%clk 0:00:01]} 36. exf5+ {[%clk 0:01:05]} 1-0


[Site "https://www.chess.com"]

[Event "Titled Tuesday Blitz September 27 Early 2022"]
[White "Albertini, Luca"]
[Black "Fawzy, Adham"]
[WhiteFideId "847038"]
[BlackFideId "10613129"]
[WhiteElo "2207"]
[BlackElo "2541"]
[Result "0-1"]
[Round "03"]
[TimeControl "180+1"]
[Date "2022.09.27"]
[WhiteClock "0:01:43"]
[BlackClock "0:01:00"]

1. d4 {[%clk 0:03:00]}  e6 {[%clk 0:02:58]} 2. c4 {[%clk 0:03:01]}  d5 {[%clk 0:02:58]} 3. Nc3 {[%clk 0:03:02]}  c6 {[%clk 0:02:57]} 4. cxd5 {[%clk 0:03:03]}  cxd5 {[%clk 0:02:55]} 5. Bf4 {[%clk 0:03:03]}  a6 {[%clk 0:02:55]} 6. e3 {[%clk 0:03:03]}  Nc6 {[%clk 0:02:55]} 7. Rc1 {[%clk 0:03:04]}  Nf6 {[%clk 0:02:56]} 8. Bd3 {[%clk 0:03:04]}  Bd6 {[%clk 0:02:56]} 9. Bxd6 {[%clk 0:03:04]}  Qxd6 {[%clk 0:02:57]} 10. Nf3 {[%clk 0:03:04]}  O-O {[%clk 0:02:57]} 11. O-O {[%clk 0:03:05]}  Bd7 {[%clk 0:02:54]} 12. Na4 {[%clk 0:03:04]}  Rac8 {[%clk 0:02:42]} 13. Nc5 {[%clk 0:03:04]}  Rc7 {[%clk 0:02:40]} 14. Qb3 {[%clk 0:02:58]}  Rb8 {[%clk 0:02:13]} 15. Qb6 {[%clk 0:02:58]}  Bc8 {[%clk 0:01:56]} 16. Ne5 {[%clk 0:02:45]}  Nd7 {[%clk 0:01:42]} 17. Ncxd7 {[%clk 0:02:26]}  Bxd7 {[%clk 0:01:41]} 18. Rc3 {[%clk 0:02:22]}  Be8 {[%clk 0:01:21]} 19. Rfc1 {[%clk 0:02:16]}  Qd8 {[%clk 0:01:19]} 20. b4 {[%clk 0:02:00]}  f6 {[%clk 0:01:09]} 21. Nf3 {[%clk 0:01:59]}  Rcc8 {[%clk 0:01:02]} 22. a4 {[%clk 0:01:43]}  Qxb6 {[%clk 0:01:00]} 0-1


[Site "https://www.chess.com"]